[Event "Late-Titled-Tuesday-Blitz-February-20-2024"]
[Site "Chess.com"]
[Date "2024.02.20"]
[Round "1"]
[White "bazar-wokzal"]
[Black "czasnaszachy"]
[Result "0-1"]
[WhiteElo "2676"]
[BlackElo "2392"]
[TimeControl "180+1"]
[EndTime "14:07:12 PST"]
[Termination "czasnaszachy won by resignation"]

1. e4 {[%clk 0:02:59.4]} 1... e5 {[%clk 0:02:59.1]} 2. Bc4 {[%clk 0:02:58.5]}
2... Nc6 {[%clk 0:02:56.7]} 3. f4 {[%clk 0:02:58.2]} 3... exf4 {[%clk
0:02:54.8]} 4. d4 {[%clk 0:02:56.4]} 4... g5 {[%clk 0:02:46.3]} 5. h4 {[%clk
0:02:55.6]} 5... Bg7 {[%clk 0:02:42]} 6. c3 {[%clk 0:02:53.9]} 6... h6 {[%clk
0:02:40.1]} 7. hxg5 {[%clk 0:02:53.4]} 7... Qxg5 {[%clk 0:02:37.3]} 8. Nf3
{[%clk 0:02:49]} 8... Qg3+ {[%clk 0:02:36.1]} 9. Kf1 {[%clk 0:02:48.7]} 9... d6
{[%clk 0:02:33.9]} 10. Bd2 {[%clk 0:02:39.8]} 10... Nf6 {[%clk 0:02:15]} 11. Qe2
{[%clk 0:02:25.7]} 11... Bg4 {[%clk 0:01:54.3]} 12. Be1 {[%clk 0:02:11.8]} 12...
Bxf3 {[%clk 0:01:54.2]} 13. gxf3 {[%clk 0:02:11.9]} 13... Qg6 {[%clk 0:01:50]}
14. Rg1 {[%clk 0:02:06.4]} 14... Qh7 {[%clk 0:01:48]} 15. Nd2 {[%clk 0:01:50.3]}
15... O-O-O {[%clk 0:01:46.7]} 16. Bxf7 {[%clk 0:01:45.3]} 16... Rhf8 {[%clk
0:01:34.8]} 17. Bg6 {[%clk 0:01:39.8]} 17... Qh8 {[%clk 0:01:34.4]} 18. Bf5+
{[%clk 0:01:27.5]} 18... Kb8 {[%clk 0:01:33.7]} 19. Qg2 {[%clk 0:01:27.5]} 19...
Nh5 {[%clk 0:01:15.3]} 20. Qg4 {[%clk 0:01:12.8]} 20... Ng3+ {[%clk 0:01:13]}
21. Bxg3 {[%clk 0:01:12.5]} 21... fxg3 {[%clk 0:01:13]} 22. Rxg3 {[%clk
0:01:11.4]} 22... Bxd4 {[%clk 0:01:12.6]} 23. cxd4 {[%clk 0:01:06.5]} 23... Qxd4
{[%clk 0:01:13]} 24. Nb3 {[%clk 0:00:55]} 24... Qxb2 {[%clk 0:01:11]} 25. Qf4
{[%clk 0:00:34.7]} 25... d5 {[%clk 0:00:56.1]} 26. Re1 {[%clk 0:00:22]} 26...
Qxa2 {[%clk 0:00:54.1]} 27. Nc5 {[%clk 0:00:20.8]} 27... Qc4+ {[%clk 0:00:53]}
28. Kg2 {[%clk 0:00:20.8]} 28... Qxc5 {[%clk 0:00:53.1]} 29. Qe3 {[%clk
0:00:17.4]} 29... Qxe3 {[%clk 0:00:51.2]} 30. Rxe3 {[%clk 0:00:17.8]} 30... d4
{[%clk 0:00:51.5]} 31. Rd3 {[%clk 0:00:16.9]} 31... Ne5 {[%clk 0:00:51.5]} 32.
Rd1 {[%clk 0:00:16.3]} 32... c5 {[%clk 0:00:51.4]} 33. f4 {[%clk 0:00:16.1]}
33... Nc4 {[%clk 0:00:51.5]} 34. Kf2 {[%clk 0:00:15.1]} 34... Ne3 {[%clk
0:00:50.9]} 35. Rc1 {[%clk 0:00:14.3]} 35... Nxf5 {[%clk 0:00:50.8]} 36. exf5
{[%clk 0:00:14.2]} 36... Rxf5 {[%clk 0:00:51.4]} 37. Rf3 {[%clk 0:00:12.6]}
37... Rdf8 {[%clk 0:00:51.3]} 38. Kg3 {[%clk 0:00:13.1]} 38... b6 {[%clk
0:00:44.5]} 39. Kg4 {[%clk 0:00:12.9]} 39... h5+ {[%clk 0:00:43.9]} 40. Kg3
{[%clk 0:00:12.2]} 40... Rg8+ {[%clk 0:00:44.3]} 41. Kf2 {[%clk 0:00:10.6]}
41... Rg4 {[%clk 0:00:44.9]} 42. Re1 {[%clk 0:00:08.1]} 42... Rgxf4 {[%clk
0:00:44.8]} 43. Rxf4 {[%clk 0:00:06.8]} 43... Rxf4+ {[%clk 0:00:44.7]} 44. Kg3
{[%clk 0:00:07.4]} 44... Rg4+ {[%clk 0:00:44.6]} 45. Kf3 {[%clk 0:00:07.7]}
45... d3 {[%clk 0:00:44.9]} 46. Rh1 {[%clk 0:00:06.9]} 46... Rd4 {[%clk
0:00:43.3]} 0-1

[Event "Late-Titled-Tuesday-Blitz-February-20-2024"]
[Site "Chess.com"]
[Date "2024.02.20"]
[Round "1"]
[White "SouS007"]
[Black "sergiochess83"]
[Result "1-0"]
[WhiteElo "2485"]
[BlackElo "2906"]
[TimeControl "180+1"]
[EndTime "14:07:16 PST"]
[Termination "SouS007 won on time"]

1. e4 {[%clk 0:03:00.9]} 1... e6 {[%clk 0:02:54]} 2. d4 {[%clk 0:03:00.5]} 2...
d5 {[%clk 0:02:54.3]} 3. Nc3 {[%clk 0:03:00.6]} 3... Nf6 {[%clk 0:02:53.5]} 4.
e5 {[%clk 0:03:00.2]} 4... Nfd7 {[%clk 0:02:53.4]} 5. Nce2 {[%clk 0:03:00.3]}
5... c5 {[%clk 0:02:53]} 6. c3 {[%clk 0:03:00.4]} 6... Nc6 {[%clk 0:02:52.9]} 7.
Nf3 {[%clk 0:03:00.2]} 7... b5 {[%clk 0:02:50.9]} 8. Nf4 {[%clk 0:02:49.9]} 8...
Qb6 {[%clk 0:02:40.1]} 9. Be2 {[%clk 0:02:37.9]} 9... a5 {[%clk 0:02:39.4]} 10.
O-O {[%clk 0:02:36.1]} 10... Ba6 {[%clk 0:02:39.5]} 11. Be3 {[%clk 0:02:33.9]}
11... b4 {[%clk 0:02:27.8]} 12. c4 {[%clk 0:02:33.9]} 12... Bxc4 {[%clk
0:02:23.8]} 13. Bxc4 {[%clk 0:02:33.8]} 13... dxc4 {[%clk 0:02:24.7]} 14. d5
{[%clk 0:02:34.1]} 14... Ncxe5 {[%clk 0:02:23.8]} 15. dxe6 {[%clk 0:02:30.3]}
15... fxe6 {[%clk 0:02:21.6]} 16. Nxe5 {[%clk 0:02:22.4]} 16... Nxe5 {[%clk
0:02:20]} 17. Qh5+ {[%clk 0:02:11.5]} 17... Nf7 {[%clk 0:02:18.9]} 18. Rfe1
{[%clk 0:02:04.1]} 18... e5 {[%clk 0:01:25]} 19. Rad1 {[%clk 0:01:53.1]} 19...
Qc6 {[%clk 0:01:01.3]} 20. Bxc5 {[%clk 0:01:28]} 20... g6 {[%clk 0:00:49]} 21.
Rxe5+ {[%clk 0:01:02]} 21... Nxe5 {[%clk 0:00:47.6]} 22. Qxe5+ {[%clk
0:01:02.9]} 22... Kf7 {[%clk 0:00:48.2]} 23. Qxh8 {[%clk 0:00:58]} 23... Bg7
{[%clk 0:00:41.1]} 24. Qxh7 {[%clk 0:00:48.1]} 24... Rh8 {[%clk 0:00:40.9]} 25.
Rd7+ {[%clk 0:00:47.7]} 25... Qxd7 {[%clk 0:00:39.1]} 26. Qxg6+ {[%clk
0:00:42.6]} 26... Kg8 {[%clk 0:00:39.4]} 27. h3 {[%clk 0:00:36.1]} 27... Rh6
{[%clk 0:00:35]} 28. Qe4 {[%clk 0:00:35.2]} 28... c3 {[%clk 0:00:32.4]} 29. Qa8+
{[%clk 0:00:33.3]} 29... Kf7 {[%clk 0:00:26.9]} 30. bxc3 {[%clk 0:00:32.8]}
30... bxc3 {[%clk 0:00:27]} 31. Qe4 {[%clk 0:00:28.2]} 31... Qc6 {[%clk
0:00:22.5]} 32. Qc4+ {[%clk 0:00:27.4]} 32... Re6 {[%clk 0:00:11.2]} 33. Nxe6
{[%clk 0:00:22.9]} 33... Qxe6 {[%clk 0:00:12.1]} 34. Qf4+ {[%clk 0:00:23.1]}
34... Kg8 {[%clk 0:00:10.3]} 35. Bd4 {[%clk 0:00:16.7]} 35... c2 {[%clk
0:00:02.4]} 36. Qb8+ {[%clk 0:00:16.3]} 36... Kh7 {[%clk 0:00:01.1]} 37. Qc7
{[%clk 0:00:16.4]} 1-0

[Event "Late-Titled-Tuesday-Blitz-February-20-2024"]
[Site "Chess.com"]
[Date "2024.02.20"]
[Round "1"]
[White "SharathRk6"]
[Black "jk13"]
[Result "1-0"]
[WhiteElo "2400"]
[BlackElo "2710"]
[TimeControl "180+1"]
[EndTime "14:07:17 PST"]
[Termination "SharathRk6 won by resignation"]

1. e4 {[%clk 0:03:00.9]} 1... e5 {[%clk 0:02:55.9]} 2. Nf3 {[%clk 0:03:01.2]}
2... Nc6 {[%clk 0:02:56.4]} 3. Bc4 {[%clk 0:03:01.3]} 3... Bc5 {[%clk
0:02:56.1]} 4. c3 {[%clk 0:03:00.9]} 4... Nf6 {[%clk 0:02:56.7]} 5. d3 {[%clk
0:03:00.9]} 5... O-O {[%clk 0:02:55.3]} 6. O-O {[%clk 0:03:01.2]} 6... d5 {[%clk
0:02:55.6]} 7. exd5 {[%clk 0:03:01.1]} 7... Nxd5 {[%clk 0:02:56.5]} 8. Nbd2
{[%clk 0:03:00.9]} 8... Bg4 {[%clk 0:02:56.4]} 9. h3 {[%clk 0:03:00.7]} 9... Bh5
{[%clk 0:02:56.1]} 10. Ne4 {[%clk 0:03:00.8]} 10... Be7 {[%clk 0:02:53.4]} 11.
Ng3 {[%clk 0:03:01.2]} 11... Bg6 {[%clk 0:02:51.6]} 12. Re1 {[%clk 0:03:00.9]}
12... Nb6 {[%clk 0:02:50.7]} 13. Bb5 {[%clk 0:03:00.6]} 13... f6 {[%clk
0:02:50.6]} 14. d4 {[%clk 0:02:55.3]} 14... exd4 {[%clk 0:02:48.7]} 15. Bxc6
{[%clk 0:02:55]} 15... bxc6 {[%clk 0:02:49.6]} 16. Nxd4 {[%clk 0:02:50.3]} 16...
Bd6 {[%clk 0:02:26.6]} 17. Ne6 {[%clk 0:02:43.1]} 17... Qd7 {[%clk 0:02:26.1]}
18. Nxf8 {[%clk 0:02:43]} 18... Rxf8 {[%clk 0:02:27]} 19. Be3 {[%clk 0:02:32.3]}
19... Kh8 {[%clk 0:02:18.3]} 20. Qf3 {[%clk 0:02:19.9]} 20... Nc4 {[%clk
0:02:13.7]} 21. b3 {[%clk 0:02:19.2]} 21... Ne5 {[%clk 0:02:08.2]} 22. Qe2
{[%clk 0:02:10.2]} 22... c5 {[%clk 0:02:07.6]} 23. Rad1 {[%clk 0:02:08.5]} 23...
Qc6 {[%clk 0:02:08.3]} 24. f4 {[%clk 0:01:59.2]} 24... Nd7 {[%clk 0:02:05.7]}
25. Qf3 {[%clk 0:01:53.7]} 25... Qa6 {[%clk 0:01:54.3]} 26. Rd2 {[%clk 0:01:38]}
26... f5 {[%clk 0:01:38.1]} 27. Bf2 {[%clk 0:01:04.4]} 27... Nf6 {[%clk
0:01:38.3]} 28. Re6 {[%clk 0:01:02.2]} 28... Ne4 {[%clk 0:01:26.4]} 29. Nxe4
{[%clk 0:00:56.1]} 29... fxe4 {[%clk 0:01:26.2]} 30. Qe2 {[%clk 0:00:42.2]}
30... Qc8 {[%clk 0:01:10.7]} 31. Rxg6 {[%clk 0:00:36.4]} 31... hxg6 {[%clk
0:01:11.6]} 32. Qxe4 {[%clk 0:00:35.8]} 32... Bxf4 {[%clk 0:01:00.9]} 33. Re2
{[%clk 0:00:28.7]} 33... Qf5 {[%clk 0:00:35]} 34. Qxf5 {[%clk 0:00:28.8]} 34...
Rxf5 {[%clk 0:00:35]} 35. Re6 {[%clk 0:00:24.1]} 35... Bh2+ {[%clk 0:00:21.4]}
36. Kxh2 {[%clk 0:00:24.3]} 36... Rxf2 {[%clk 0:00:22]} 37. Ra6 {[%clk
0:00:24.3]} 37... Rc2 {[%clk 0:00:19.2]} 38. c4 {[%clk 0:00:24.4]} 38... Kh7
{[%clk 0:00:19.2]} 39. Rxa7 {[%clk 0:00:24.7]} 39... c6 {[%clk 0:00:19.8]} 40.
Ra6 {[%clk 0:00:24.5]} 40... Rb2 {[%clk 0:00:18.1]} 41. Rxc6 {[%clk 0:00:24.3]}
41... Rxa2 {[%clk 0:00:18.7]} 42. Rxc5 {[%clk 0:00:24.8]} 42... Rb2 {[%clk
0:00:19.6]} 43. Rb5 {[%clk 0:00:25.2]} 43... Kh6 {[%clk 0:00:20.2]} 44. c5
{[%clk 0:00:25.5]} 44... Kg5 {[%clk 0:00:20.1]} 45. c6+ {[%clk 0:00:25.4]} 45...
Kf4 {[%clk 0:00:20.3]} 46. b4 {[%clk 0:00:22.6]} 46... Rc2 {[%clk 0:00:13.8]}
47. Rc5 {[%clk 0:00:22.4]} 47... Rb2 {[%clk 0:00:11.4]} 48. c7 {[%clk
0:00:22.6]} 1-0

[Event "Late-Titled-Tuesday-Blitz-February-20-2024"]
[Site "Chess.com"]
[Date "2024.02.20"]
[Round "1"]
[White "JackRodgers"]
[Black "larsmandreassen"]
[Result "1-0"]
[WhiteElo "2553"]
[BlackElo "2185"]
[TimeControl "180+1"]
[EndTime "14:07:18 PST"]
[Termination "JackRodgers won on time"]

1. d4 {[%clk 0:03:00.9]} 1... d5 {[%clk 0:02:59.4]} 2. c4 {[%clk 0:03:00.3]}
2... e6 {[%clk 0:02:59.4]} 3. Nc3 {[%clk 0:02:59.9]} 3... c5 {[%clk 0:02:59.6]}
4. cxd5 {[%clk 0:02:59.3]} 4... cxd4 {[%clk 0:02:59.6]} 5. Qxd4 {[%clk
0:02:56.1]} 5... Nc6 {[%clk 0:02:55.2]} 6. Qd1 {[%clk 0:02:56.1]} 6... exd5
{[%clk 0:02:55]} 7. Qxd5 {[%clk 0:02:52.8]} 7... Bd7 {[%clk 0:02:55]} 8. Nf3
{[%clk 0:02:43.6]} 8... Nf6 {[%clk 0:02:55.4]} 9. Qd1 {[%clk 0:02:42]} 9... Bc5
{[%clk 0:02:55.6]} 10. e3 {[%clk 0:02:41]} 10... Rg8 {[%clk 0:02:55]} 11. Bc4
{[%clk 0:02:36.4]} 11... g5 {[%clk 0:02:54.7]} 12. h3 {[%clk 0:02:23.2]} 12...
h5 {[%clk 0:02:47.6]} 13. Nd5 {[%clk 0:02:17.1]} 13... Nxd5 {[%clk 0:02:43.4]}
14. Qxd5 {[%clk 0:02:15.9]} 14... Qe7 {[%clk 0:02:44]} 15. Bd2 {[%clk 0:01:53]}
15... Be6 {[%clk 0:02:39.5]} 16. Qe4 {[%clk 0:01:48.9]} 16... O-O-O {[%clk
0:02:30.3]} 17. Bxe6+ {[%clk 0:01:47.8]} 17... fxe6 {[%clk 0:02:26.4]} 18. Rc1
{[%clk 0:01:46.5]} 18... g4 {[%clk 0:02:20.6]} 19. Ne5 {[%clk 0:01:39.6]} 19...
Nxe5 {[%clk 0:01:40.9]} 20. Qxe5 {[%clk 0:01:40.5]} 20... Rd5 {[%clk 0:01:40.7]}
21. Qe4 {[%clk 0:01:30.9]} 21... Kb8 {[%clk 0:01:34.3]} 22. a3 {[%clk
0:01:16.4]} 22... g3 {[%clk 0:00:49.5]} 23. Rf1 {[%clk 0:00:53.1]} 23... Qd6
{[%clk 0:00:35.1]} 24. Bc3 {[%clk 0:00:42.8]} 24... Rd8 {[%clk 0:00:30.6]} 25.
Ke2 {[%clk 0:00:39.9]} 25... Rd2+ {[%clk 0:00:27.6]} 26. Bxd2 {[%clk 0:00:33.7]}
26... Qxd2+ {[%clk 0:00:28.5]} 27. Kf3 {[%clk 0:00:34.4]} 27... Rf8+ {[%clk
0:00:13.1]} 28. Kxg3 {[%clk 0:00:32.5]} 28... Bd6+ {[%clk 0:00:13.6]} 29. f4
{[%clk 0:00:16.4]} 29... Rg8+ {[%clk 0:00:13.7]} 30. Kh2 {[%clk 0:00:16.8]}
30... Be7 {[%clk 0:00:02.5]} 31. Qf3 {[%clk 0:00:11.6]} 31... Bh4 {[%clk
0:00:01.7]} 32. Kh1 {[%clk 0:00:12.1]} 1-0

[Event "Late-Titled-Tuesday-Blitz-February-20-2024"]
[Site "Chess.com"]
[Date "2024.02.20"]
[Round "1"]
[White "semchik73"]
[Black "Hongjin"]
[Result "1-0"]
[WhiteElo "2422"]
[BlackElo "2748"]
[TimeControl "180+1"]
[EndTime "14:07:19 PST"]
[Termination "semchik73 won by checkmate"]

1. Nf3 {[%clk 0:03:00.4]} 1... d5 {[%clk 0:02:58.5]} 2. c4 {[%clk 0:03:00.8]}
2... e6 {[%clk 0:02:57.8]} 3. d4 {[%clk 0:03:00.8]} 3... Nf6 {[%clk 0:02:57.9]}
4. Nc3 {[%clk 0:03:01.2]} 4... Be7 {[%clk 0:02:57.4]} 5. Bg5 {[%clk 0:03:00.6]}
5... O-O {[%clk 0:02:56.9]} 6. e3 {[%clk 0:03:00.6]} 6... h6 {[%clk 0:02:57.5]}
7. Bh4 {[%clk 0:03:00.3]} 7... Nbd7 {[%clk 0:02:57.4]} 8. Bd3 {[%clk 0:03:00.5]}
8... c5 {[%clk 0:02:57.4]} 9. O-O {[%clk 0:02:59.7]} 9... b6 {[%clk 0:02:56.9]}
10. cxd5 {[%clk 0:02:54.6]} 10... Nxd5 {[%clk 0:02:56.9]} 11. Bxe7 {[%clk
0:02:51.7]} 11... Nxe7 {[%clk 0:02:55.5]} 12. Bc2 {[%clk 0:02:43.5]} 12... Bb7
{[%clk 0:02:53.7]} 13. Qd3 {[%clk 0:02:39.7]} 13... Nf6 {[%clk 0:02:47.6]} 14.
Ne5 {[%clk 0:02:39.8]} 14... Nf5 {[%clk 0:02:41.1]} 15. Rfd1 {[%clk 0:02:19.4]}
15... Nh4 {[%clk 0:02:34.1]} 16. Ng4 {[%clk 0:02:02.9]} 16... Ng6 {[%clk
0:02:21.2]} 17. Nxf6+ {[%clk 0:01:49.5]} 17... Qxf6 {[%clk 0:02:20.6]} 18. dxc5
{[%clk 0:01:49.6]} 18... Qg5 {[%clk 0:02:06.4]} 19. Ne4 {[%clk 0:01:42.6]} 19...
Bxe4 {[%clk 0:01:55.5]} 20. Qxe4 {[%clk 0:01:42.3]} 20... Qxc5 {[%clk
0:01:55.4]} 21. Rac1 {[%clk 0:01:41.6]} 21... Rac8 {[%clk 0:01:52.2]} 22. h4
{[%clk 0:01:35.2]} 22... h5 {[%clk 0:01:44.1]} 23. Qf3 {[%clk 0:01:28.6]} 23...
Nxh4 {[%clk 0:01:27.9]} 24. Qg3 {[%clk 0:01:23.2]} 24... Nf5 {[%clk 0:01:23]}
25. Qg5 {[%clk 0:01:22.8]} 25... g6 {[%clk 0:01:21.3]} 26. e4 {[%clk 0:01:13.1]}
26... Nd4 {[%clk 0:01:18]} 27. Qxc5 {[%clk 0:00:47]} 27... bxc5 {[%clk
0:01:18.9]} 28. Bd3 {[%clk 0:00:46.2]} 28... Rfd8 {[%clk 0:01:17.6]} 29. f3
{[%clk 0:00:43.4]} 29... g5 {[%clk 0:01:11.5]} 30. Kf2 {[%clk 0:00:42.9]} 30...
Kg7 {[%clk 0:01:09.1]} 31. Ba6 {[%clk 0:00:39.2]} 31... Rc6 {[%clk 0:01:06.1]}
32. Bb5 {[%clk 0:00:38.4]} 32... Rc7 {[%clk 0:01:04.3]} 33. b4 {[%clk
0:00:33.3]} 33... Rb8 {[%clk 0:01:04.4]} 34. Rxd4 {[%clk 0:00:30.2]} 34... Rxb5
{[%clk 0:01:03.8]} 35. Rdc4 {[%clk 0:00:28.1]} 35... Rd7 {[%clk 0:00:53]} 36.
bxc5 {[%clk 0:00:26.7]} 36... Rd2+ {[%clk 0:00:51.1]} 37. Ke3 {[%clk 0:00:27.1]}
37... Rxg2 {[%clk 0:00:45.8]} 38. c6 {[%clk 0:00:27.5]} 38... Rb8 {[%clk
0:00:46.1]} 39. c7 {[%clk 0:00:27.5]} 39... Rc8 {[%clk 0:00:46.2]} 40. Rd1
{[%clk 0:00:25.6]} 40... Rxa2 {[%clk 0:00:36.8]} 41. Rd8 {[%clk 0:00:23.9]}
41... Ra3+ {[%clk 0:00:36.3]} 42. Kf2 {[%clk 0:00:22]} 42... Ra2+ {[%clk
0:00:35.4]} 43. Kg3 {[%clk 0:00:21]} 43... h4+ {[%clk 0:00:35.4]} 44. Kh3 {[%clk
0:00:21.3]} 44... Rxc7 {[%clk 0:00:33.1]} 45. Rxc7 {[%clk 0:00:21.3]} 45... Rf2
{[%clk 0:00:31]} 46. Rd3 {[%clk 0:00:18.4]} 46... Kg6 {[%clk 0:00:29.6]} 47.
Rxa7 {[%clk 0:00:17.6]} 47... f5 {[%clk 0:00:29.8]} 48. exf5+ {[%clk 0:00:16.6]}
48... exf5 {[%clk 0:00:30.7]} 49. Rd6+ {[%clk 0:00:16.2]} 49... Kh5 {[%clk
0:00:30.2]} 50. Rh7# {[%clk 0:00:16.3]} 1-0

[Event "Late-Titled-Tuesday-Blitz-February-20-2024"]
[Site "Chess.com"]
[Date "2024.02.20"]
[Round "1"]
[White "lluiss"]
[Black "laziestwin"]
[Result "0-1"]
[WhiteElo "2191"]
[BlackElo "2560"]
[TimeControl "180+1"]
[EndTime "14:07:21 PST"]
[Termination "laziestwin won on time"]

1. Nf3 {[%clk 0:02:58.5]} 1... d5 {[%clk 0:02:55.9]} 2. d4 {[%clk 0:02:56.3]}
2... Nf6 {[%clk 0:02:55.3]} 3. c4 {[%clk 0:02:55.8]} 3... c6 {[%clk 0:02:52.8]}
4. cxd5 {[%clk 0:02:55.8]} 4... cxd5 {[%clk 0:02:52.3]} 5. Nc3 {[%clk
0:02:56.3]} 5... Nc6 {[%clk 0:02:51.2]} 6. Bf4 {[%clk 0:02:56]} 6... a6 {[%clk
0:02:48.4]} 7. e3 {[%clk 0:02:55.4]} 7... Bg4 {[%clk 0:02:48.2]} 8. Be2 {[%clk
0:02:54.9]} 8... e6 {[%clk 0:02:47.9]} 9. O-O {[%clk 0:02:54.6]} 9... Bd6 {[%clk
0:02:47.7]} 10. Bxd6 {[%clk 0:02:54.2]} 10... Qxd6 {[%clk 0:02:48.6]} 11. Ne1
{[%clk 0:02:53.8]} 11... Bf5 {[%clk 0:02:46.4]} 12. Bd3 {[%clk 0:02:52.5]} 12...
g6 {[%clk 0:02:40.1]} 13. Rc1 {[%clk 0:02:37.8]} 13... O-O {[%clk 0:02:33.3]}
14. Bxf5 {[%clk 0:02:34.1]} 14... gxf5 {[%clk 0:02:34.2]} 15. Nd3 {[%clk
0:02:34]} 15... Rac8 {[%clk 0:02:29]} 16. Qd2 {[%clk 0:01:47]} 16... Kh8 {[%clk
0:02:19.8]} 17. f3 {[%clk 0:01:37.1]} 17... Na5 {[%clk 0:02:07.9]} 18. b3 {[%clk
0:01:36.4]} 18... Nc6 {[%clk 0:02:04]} 19. Rc2 {[%clk 0:01:35.6]} 19... Rc7
{[%clk 0:01:37.8]} 20. Rfc1 {[%clk 0:01:34.9]} 20... Rfc8 {[%clk 0:01:38.3]} 21.
Na4 {[%clk 0:01:35]} 21... Ne7 {[%clk 0:01:31]} 22. Ne5 {[%clk 0:01:33.7]} 22...
Kg7 {[%clk 0:01:26]} 23. Qf2 {[%clk 0:01:20.2]} 23... Ng6 {[%clk 0:01:24.5]} 24.
f4 {[%clk 0:00:44.4]} 24... Ne4 {[%clk 0:01:17.9]} 25. Qe2 {[%clk 0:00:44.5]}
25... b5 {[%clk 0:00:54.1]} 26. Nb2 {[%clk 0:00:28.8]} 26... Rxc2 {[%clk
0:00:45.4]} 27. Rxc2 {[%clk 0:00:27.7]} 27... Rxc2 {[%clk 0:00:41.8]} 28. Qxc2
{[%clk 0:00:27.4]} 28... Nxe5 {[%clk 0:00:33.8]} 29. fxe5 {[%clk 0:00:21.6]}
29... Qe7 {[%clk 0:00:30.8]} 30. Nd3 {[%clk 0:00:18]} 30... Qg5 {[%clk
0:00:28.5]} 31. Nf4 {[%clk 0:00:16]} 31... Qh4 {[%clk 0:00:22.7]} 32. Qc1 {[%clk
0:00:12.4]} 32... Qf2+ {[%clk 0:00:20.4]} 33. Kh1 {[%clk 0:00:12.3]} 33... Qxa2
{[%clk 0:00:17.7]} 34. Qe1 {[%clk 0:00:10]} 34... Qf2 {[%clk 0:00:15.2]} 35.
Qxf2 {[%clk 0:00:10.1]} 35... Nxf2+ {[%clk 0:00:16.1]} 36. Kg1 {[%clk
0:00:10.2]} 36... Nd1 {[%clk 0:00:15.8]} 37. Nd3 {[%clk 0:00:06.5]} 37... a5
{[%clk 0:00:12.5]} 38. Nc5 {[%clk 0:00:02.8]} 38... Nxe3 {[%clk 0:00:11.5]} 0-1

[Event "Late-Titled-Tuesday-Blitz-February-20-2024"]
[Site "Chess.com"]
[Date "2024.02.20"]
[Round "1"]
[White "ImportedItalianMaple"]
[Black "shirovin"]
[Result "1-0"]
[WhiteElo "2538"]
[BlackElo "2093"]
[TimeControl "180+1"]
[EndTime "14:07:21 PST"]
[Termination "ImportedItalianMaple won on time"]

1. Nf3 {[%clk 0:02:58.2]} 1... Nf6 {[%clk 0:02:57.8]} 2. g3 {[%clk 0:02:58.2]}
2... g6 {[%clk 0:02:55.7]} 3. Bg2 {[%clk 0:02:58.7]} 3... Bg7 {[%clk 0:02:55.3]}
4. O-O {[%clk 0:02:59.3]} 4... d5 {[%clk 0:02:55.2]} 5. d4 {[%clk 0:02:59.8]}
5... c6 {[%clk 0:02:54.4]} 6. c4 {[%clk 0:02:59.6]} 6... dxc4 {[%clk 0:02:53.7]}
7. Na3 {[%clk 0:02:58.4]} 7... Be6 {[%clk 0:02:52.5]} 8. Ne5 {[%clk 0:02:49.8]}
8... Bd5 {[%clk 0:02:48.8]} 9. f3 {[%clk 0:02:45.8]} 9... O-O {[%clk 0:02:26.3]}
10. e4 {[%clk 0:02:45.1]} 10... Be6 {[%clk 0:02:25]} 11. Naxc4 {[%clk 0:02:39]}
11... Nfd7 {[%clk 0:02:19.8]} 12. Be3 {[%clk 0:02:31]} 12... Nxe5 {[%clk
0:02:14.6]} 13. Nxe5 {[%clk 0:02:31.6]} 13... Nd7 {[%clk 0:02:14]} 14. Nxd7
{[%clk 0:02:27.1]} 14... Qxd7 {[%clk 0:02:10.4]} 15. Qd2 {[%clk 0:02:26.9]}
15... Rfd8 {[%clk 0:02:04.4]} 16. Rfd1 {[%clk 0:02:26]} 16... a5 {[%clk
0:01:49.8]} 17. Qf2 {[%clk 0:02:07]} 17... a4 {[%clk 0:01:43.1]} 18. Rd2 {[%clk
0:01:52.1]} 18... h5 {[%clk 0:01:27.6]} 19. a3 {[%clk 0:01:49.6]} 19... Bb3
{[%clk 0:01:26]} 20. Rc1 {[%clk 0:01:48]} 20... Rac8 {[%clk 0:01:10.2]} 21. h4
{[%clk 0:01:32.6]} 21... Qc7 {[%clk 0:00:58.1]} 22. Bh3 {[%clk 0:01:29.9]} 22...
e6 {[%clk 0:00:55.4]} 23. d5 {[%clk 0:01:19.6]} 23... Qa5 {[%clk 0:00:42.3]} 24.
Bb6 {[%clk 0:01:13.7]} 24... Qa6 {[%clk 0:00:40.5]} 25. Bxd8 {[%clk 0:01:05.9]}
25... Rxd8 {[%clk 0:00:40.2]} 26. dxe6 {[%clk 0:01:06.3]} 26... Rxd2 {[%clk
0:00:29.9]} 27. exf7+ {[%clk 0:01:06.2]} 27... Kxf7 {[%clk 0:00:28.1]} 28. Qxd2
{[%clk 0:01:06.6]} 28... Qb6+ {[%clk 0:00:25.7]} 29. Kg2 {[%clk 0:01:06.3]}
29... Bd4 {[%clk 0:00:22.8]} 30. Re1 {[%clk 0:00:43.6]} 30... c5 {[%clk
0:00:21.8]} 31. Re2 {[%clk 0:00:38.2]} 31... Bc4 {[%clk 0:00:21]} 32. Qf4+
{[%clk 0:00:38.8]} 32... Kg7 {[%clk 0:00:18.5]} 33. Rd2 {[%clk 0:00:38.8]} 33...
Bf7 {[%clk 0:00:15.6]} 34. g4 {[%clk 0:00:29.1]} 34... hxg4 {[%clk 0:00:14.5]}
35. Bxg4 {[%clk 0:00:27.1]} 35... Bxb2 {[%clk 0:00:14.3]} 36. h5 {[%clk
0:00:23.6]} 36... Bd4 {[%clk 0:00:11.8]} 37. h6+ {[%clk 0:00:22]} 37... Kf8
{[%clk 0:00:09.7]} 38. e5 {[%clk 0:00:16.4]} 38... Qa5 {[%clk 0:00:07.3]} 39. e6
{[%clk 0:00:15.5]} 1-0